bitfinex-derivatives/quotes_ETHF0:USTF0_20250904
["timestamp","ask_amount","ask_price","bid_price","bid_amount"]
[1757010677922,0.5598,4275.8,4275.7,41.49587]
[1757010678121,3.2078,4276.3,4275.7,41.49587]
[1757010678122,3.7669,4276.3,4276.2,0.42082]
[1757010678323,3.7669,4276.3,4276.2,0.69582]
[1757010678528,3.7669,4276.3,4276.2,0.275]
[1757010678927,3.7669,4276.3,4275.7,40.8]
[1757010678928,0.5591,4275.9,4275.7,40.8]
[1757010679231,3.7669,4275.8,4275.7,41.22087]
[1757010679730,3.2078,4275.8,4275.7,41.22087]
[1757010680724,3.7669,4275.8,4275.7,41.22087]
[1757010681626,3.2078,4276.3,4276.2,0.42083]
[1757010681830,3.2078,4276.3,4276.2,0.69383]
[1757010682026,3.7669,4276.3,4276.2,0.69383]
[1757010682234,0.5591,4276.2,4276.1,0.42083]
[1757010682430,7.2078,4276.3,4276.1,0.42083]
[1757010682431,3.2078,4276.3,4276.2,0.0762]
[1757010682631,0.676,4276.8,4276.2,0.0762]
[1757010682925,3.7669,4276.6,4276.5,0.4208]
[1757010683127,3.7669,4276.6,4276.5,41.073]
[1757010683530,0.1169,4276.8,4276.6,0.42079]
[1757010683833,0.7811,4277.0,4276.9,0.42076]
[1757010684034,0.7811,4277.0,4276.9,0.69376]
[1757010687331,0.2407,4276.5,4276.4,0.42081]
[1757010687537,4.4284,4276.5,4276.3,0.272]
[1757010687833,4.4284,4276.5,4276.3,0.69282]
[1757010688232,4.0076,4276.5,4276.3,0.69282]
[1757010688432,0.5591,4276.4,4276.3,0.69282]
[1757010688829,0.5591,4276.9,4276.8,0.42077]
[1757010689135,0.5591,4276.9,4276.8,0.69277]
[1757010689337,0.5591,4276.9,4276.8,41.49277]
[1757010689834,0.5591,4276.9,4276.8,41.072]
[1757010691829,0.5591,4276.9,4276.8,0.272]
[1757010692033,0.5591,4276.4,4275.8,0.271]
[1757010692234,3.2078,4276.1,4275.9,0.42086]
[1757010692536,0.5591,4276.0,4275.9,0.42086]
[1757010692929,3.2078,4276.1,4275.9,41.29706]
[1757010693838,3.2078,4276.1,4276.0,0.42085]
[1757010694339,3.7669,4276.1,4276.0,0.42085]
[1757010694544,3.7669,4276.1,4276.0,0.69185]
[1757010696436,3.2078,4276.1,4276.0,0.69185]
[1757010696841,3.7669,4276.1,4276.0,41.49185]
[1757010697030,3.7669,4276.1,4276.0,41.22085]
[1757010697338,0.5591,4275.3,4274.6,1.05247]
[1757010697540,0.5591,4275.3,4275.2,0.42093]
[1757010697729,0.5591,4275.3,4275.2,41.49093]
[1757010700547,0.5591,4275.3,4275.2,41.07]
[1757010700840,0.5591,4275.3,4275.2,41.069]
[1757010702340,0.5591,4275.3,4275.2,40.8]
[1757010702541,0.5591,4275.3,4275.2,0.269]
[1757010702839,4.5591,4275.3,4275.2,0.269]
[1757010703048,7.7669,4275.3,4275.2,0.269]
[1757010703342,7.7669,4275.3,4274.6,40.8]
[1757010703343,0.2407,4275.0,4274.6,40.8]
[1757010703541,3.7669,4274.7,4274.6,40.8]
[1757010703844,3.7669,4274.7,4274.6,0.269]
[1757010704734,4.18788,4274.7,4274.6,0.269]
[1757010705241,0.98012,4274.3,4274.2,40.8]
[1757010705739,0.98012,4274.3,4274.2,41.068]
[1757010705942,0.5591,4273.6,4273.1,0.4971]
[1757010706146,0.5591,4273.6,4273.5,0.268]
[1757010706438,0.98019,4273.6,4273.5,0.93140857]
[1757010706741,0.98019,4273.6,4273.5,1.19940857]
[1757010706936,0.98019,4273.6,4273.5,41.73140857]
[1757010707140,4.98019,4273.6,4273.5,0.93140857]
[1757010707345,0.5591,4273.4,4272.7,0.42117]
[1757010707639,3.2078,4272.9,4272.8,41.47496723]
[1757010707839,3.2078,4273.4,4272.9,1.05289]
[1757010708043,3.2078,4273.4,4273.2,0.42112]
[1757010708247,0.5554,4273.3,4273.2,0.42112]
[1757010708539,0.5554,4273.3,4273.2,0.268]
[1757010709149,0.5554,4273.3,4273.2,0.68912]
[1757010709542,0.5554,4273.3,4273.2,0.268]
[1757010709743,0.5554,4273.3,4273.2,0.42112]
[1757010709949,0.5554,4273.3,4273.2,0.68812]
[1757010710148,0.5554,4273.3,4272.4,3.24852984]
[1757010710349,0.97654,4273.1,4272.5,0.267]
[1757010710544,0.5554,4272.8,4272.5,0.267]
[1757010710750,0.5554,4272.8,4272.7,0.42117]
[1757010711650,0.5554,4272.8,4272.7,0.68817]
[1757010712047,3.62896,4272.9,4272.6,41.22118]
[1757010712248,3.62896,4272.9,4272.6,40.8]
[1757010712249,0.5554,4272.7,4272.6,40.8]
[1757010712449,0.5554,4272.7,4272.6,41.067]
[1757010712750,3.2078,4272.9,4272.6,0.42118]
[1757010712944,0.5554,4272.8,4272.7,0.267]
[1757010714349,0.5554,4272.8,4272.6,0.42118]
[1757010714350,0.5554,4272.4,4272.3,0.73260695]
[1757010714647,3.7632,4272.4,4272.3,0.99960695]
[1757010714849,3.7632,4272.4,4272.3,0.73260695]
[1757010715049,3.7632,4272.4,4272.3,0.99960695]
[1757010715248,3.2078,4272.4,4272.3,1.48000695]
[1757010715751,3.7632,4272.4,4272.3,0.99960695]
[1757010716253,3.2078,4272.4,4272.3,1.48000695]
[1757010716452,3.7632,4272.4,4272.3,0.99860695]
[1757010716842,3.7632,4272.4,4272.3,41.53260695]
[1757010717150,3.7632,4272.4,4272.3,41.79860695]
[1757010717540,3.2078,4272.4,4272.3,41.79860695]
[1757010717743,3.2078,4272.4,4272.3,42.27900695]
[1757010718346,3.2078,4272.9,4272.8,0.42116]
[1757010718656,3.2078,4272.9,4272.8,1.16756]
[1757010719045,3.7632,4272.9,4272.8,0.42116]
[1757010719246,3.7632,4272.9,4272.3,41.53260695]
[1757010719247,0.5554,4272.8,4272.7,0.266]
[1757010719555,3.2078,4272.9,4272.3,41.53260695]
[1757010719556,0.5554,4272.4,4272.3,0.73260695]
[1757010719745,3.7632,4272.4,4272.3,0.99860695]
[1757010720250,3.2078,4272.4,4272.3,0.99860695]
[1757010720441,3.7632,4272.4,4272.3,0.99860695]
[1757010720640,3.2078,4272.4,4272.3,0.99860695]
[1757010720845,3.2078,4272.4,4272.3,1.47900695]
[1757010721045,3.7632,4272.4,4272.3,0.99860695]
[1757010721240,3.7632,4272.4,4272.3,41.79860695]
[1757010721751,3.7632,4272.4,4272.3,41.53260695]
[1757010721957,3.7632,4272.4,4272.3,41.79760695]
[1757010722142,3.7632,4272.4,4272.0,25.0]
[1757010722347,4.23407,4272.3,4272.0,23.7954]
[1757010722554,0.266,4272.2,4272.0,23.7954]
[1757010722949,3.2078,4272.4,4272.1,0.266]
[1757010723155,3.2078,4272.4,4272.1,0.561]
[1757010723352,3.2078,4272.4,4272.3,0.561]
[1757010723548,3.2078,4272.4,4272.3,0.827]
[1757010724459,3.2078,4272.4,4272.3,0.561]
[1757010724661,3.2078,4272.4,4272.3,0.827]
[1757010724860,0.117,4272.6,4272.5,0.2322]
[1757010725046,0.117,4272.6,4272.5,1.0582]
[1757010725355,3.2078,4272.9,4272.6,0.561]
[1757010725553,3.2078,4273.7,4273.2,1.05282]
[1757010725745,3.2078,4273.7,4273.5,0.2322]
[1757010725952,3.2078,4273.7,4273.6,0.826]
[1757010726259,5.0,4274.0,4273.9,0.42105]
[1757010726554,5.0,4274.0,4273.9,4.45485]
[1757010726749,5.0,4274.0,4273.9,42.04705]
[1757010726950,5.0,4274.0,4273.9,41.78205]
[1757010727150,5.0,4274.0,4273.9,44.98985]
[1757010727360,5.0,4274.0,4273.9,45.25485]
[1757010727560,5.0,4274.0,4273.9,42.04705]
[1757010728248,3.2078,4275.0,4273.9,42.04705]
[1757010728249,3.2078,4275.0,4274.9,0.98196]
[1757010728454,3.2078,4275.0,4274.9,1.24696]
[1757010728645,3.2078,4275.7,4275.6,0.42089]
[1757010728845,3.7632,4275.7,4275.6,0.68589]
[1757010729049,3.2078,4275.7,4275.6,42.04689]
[1757010729256,0.5554,4276.1,4276.0,0.42084]
[1757010729446,3.2078,4276.2,4276.0,0.68584]
[1757010729854,3.2078,4276.2,4276.1,0.57489134]
[1757010730061,3.7632,4276.2,4276.1,0.27889134]
[1757010730358,0.2188,4276.0,4275.6,41.48588]
[1757010730659,0.5554,4275.9,4275.7,0.265]
[1757010730860,0.2188,4276.0,4275.7,0.265]
[1757010731053,0.5554,4275.9,4275.7,0.265]
[1757010731248,0.2188,4276.0,4275.7,0.265]
[1757010731450,3.2078,4276.2,4276.1,0.98184]
[1757010731654,3.2078,4276.2,4276.1,1.24584]
[1757010731955,32.5108,4278.0,4276.1,1.24584]
[1757010731956,0.5554,4276.6,4276.1,40.81389134]
[1757010732257,3.7632,4276.2,4276.1,41.07889134]
[1757010732455,0.5554,4276.2,4276.1,41.07889134]
[1757010732758,0.5554,4276.5,4276.4,0.42081]
[1757010732953,0.5554,4276.5,4276.4,0.71359268]
[1757010733157,3.2078,4276.7,4276.6,0.42079]
[1757010733457,3.7632,4276.7,4276.6,0.265]
[1757010733654,3.7632,4276.7,4276.6,0.264]
[1757010734054,3.7632,4276.7,4276.6,0.30567402]
[1757010734859,3.2078,4277.2,4277.0,0.42074]
[1757010735053,3.2078,4277.2,4276.2,4.25987]
[1757010735054,3.2078,4277.2,4276.2,3.7688]
[1757010735254,3.2078,4277.2,4276.7,0.42078]
[1757010735458,3.2078,4277.2,4276.8,0.264]
[1757010735662,0.63955,4277.0,4276.9,0.264]
[1757010735855,0.2188,4277.0,4276.7,0.42077]
[1757010736060,0.2188,4277.0,4276.2,0.561]
[1757010736061,0.2188,4277.0,4276.9,0.264]
[1757010736255,3.2078,4277.2,4277.0,0.42075]
[1757010736562,3.2078,4277.2,4277.1,0.561]
[1757010737164,3.2078,4277.2,4277.1,0.57651031]
[1757010737457,3.2078,4277.7,4277.6,0.98169]
[1757010737658,3.7942,4277.7,4277.1,0.65871031]
[1757010737856,3.2078,4277.7,4277.2,0.264]
[1757010738054,0.5864,4277.6,4277.4,0.01551031]
[1757010738457,0.8315,4277.5,4277.4,0.01551031]
[1757010738964,1.2522,4277.5,4277.4,0.263]
[1757010739265,1.25226,4277.0,4276.9,40.8]
[1757010739464,4.0393,4277.0,4276.9,41.063]
[1757010739660,3.2078,4277.0,4276.9,41.7062]
[1757010740767,3.2078,4277.7,4277.6,0.42069]
[1757010740967,3.7942,4277.7,4277.6,0.68369]
[1757010741263,3.7942,4277.7,4277.6,1.32689]
[1757010741264,3.2078,4277.7,4277.6,1.32689]
[1757010741963,3.7942,4278.2,4278.1,0.42064]
[1757010742166,3.2078,4278.2,4278.1,1.32684]
[1757010742459,3.2078,4278.2,4278.1,42.12684]
[1757010742661,3.7942,4278.2,4278.1,40.8]
[1757010742867,3.7942,4278.2,4278.1,41.063]
[1757010743167,3.7942,4278.2,4277.5,0.6432]
[1757010743367,0.5864,4278.1,4278.0,0.42065]
[1757010743568,3.2078,4278.2,4278.0,41.48365]
[1757010743865,3.2078,4278.2,4278.1,0.9052]
[1757010744264,3.7942,4278.2,4278.0,40.8]
[1757010744463,0.5864,4278.1,4278.0,40.8]
[1757010744762,0.5864,4278.1,4278.0,41.062]
[1757010745566,0.5864,4278.1,4278.0,0.262]
[1757010746262,0.5864,4277.7,4277.6,40.8]
[1757010746468,0.5864,4277.7,4277.6,41.062]
[1757010746762,0.5864,4277.9,4277.8,0.42067]
[1757010746966,0.5864,4277.9,4277.8,1.32587]
[1757010747166,3.2078,4278.2,4278.1,0.42064]
[1757010747371,3.2078,4278.2,4278.1,1.32584]
[1757010748367,3.2078,4278.8,4278.7,0.42058]
[1757010748569,3.2078,4278.8,4278.7,1.32578]
[1757010749270,0.17,4278.9,4278.8,0.6432]
[1757010749562,0.17,4278.9,4278.8,1.06377]
[1757010749967,0.17,4278.9,4278.8,0.6432]
[1757010750363,0.17,4278.9,4278.8,0.9052]
[1757010750565,0.17,4278.9,4278.8,41.7042]
[1757010750866,0.17,4278.9,4278.8,41.4432]
[1757010751070,0.17,4278.9,4278.8,41.7042]
[1757010752575,0.17,4278.9,4278.8,41.86377]
[1757010752768,0.17,4278.9,4278.8,42.12477]
[1757010752975,0.7564,4278.9,4278.8,40.8]
[1757010753170,0.7564,4278.9,4278.8,41.061]
[1757010753473,0.17,4278.9,4278.8,42.12477]
[1757010753865,0.17,4278.9,4278.8,45.33257]
[1757010755269,0.17,4278.9,4278.8,45.07157]
[1757010755467,0.17,4278.9,4278.8,45.33257]
[1757010756477,0.5864,4279.9,4279.8,0.42047]
[1757010756781,3.2078,4280.0,4279.9,0.6432]
[1757010757367,3.2078,4280.5,4280.4,0.6432]
[1757010757573,3.2078,4281.0,4280.9,1.06357]
[1757010757868,3.2078,4281.0,4280.9,1.32357]
[1757010758065,0.5864,4281.5,4280.9,1.32357]
[1757010758066,0.5864,4281.5,4281.4,0.42032]
[1757010758270,0.5864,4281.5,4281.4,0.68032]
[1757010758568,0.5864,4281.5,4281.4,0.26]
[1757010759471,0.8315,4281.5,4281.4,0.26]
[1757010760972,3.2078,4281.6,4281.5,1.06351]
[1757010761167,3.2078,4281.6,4281.5,0.6432]
[1757010761477,3.2078,4281.6,4281.2,0.42033]
[1757010761478,0.2451,4281.5,4281.2,0.42033]
[1757010761780,0.5864,4281.4,4281.3,0.26]
[1757010762371,3.2078,4281.6,4281.5,1.06351]
[1757010762980,0.5864,4281.5,4281.2,0.42033]
[1757010763179,0.5864,4281.5,4281.0,44.0078]
[1757010763180,0.5864,4281.5,4281.4,0.42031]
[1757010763479,3.2078,4281.6,4281.5,0.6432]
[1757010763973,3.2078,4281.6,4281.5,0.9022]
[1757010764677,3.7942,4281.6,4281.5,0.9022]
[1757010765075,3.7942,4281.6,4281.0,44.2654]
[1757010765076,0.5864,4281.5,4281.0,44.651]
[1757010765275,0.5864,4281.4,4281.3,0.42032]
[1757010765478,0.5864,4281.4,4281.3,0.67932]
[1757010766380,3.2078,4281.6,4281.3,0.67932]
[1757010766381,3.2078,4281.6,4281.5,1.06351]
[1757010766983,3.7942,4281.6,4281.5,1.32251]
[1757010767176,3.2078,4281.6,4281.5,1.32251]
[1757010768189,3.8464,4281.6,4281.5,1.32251]
[1757010768387,3.8464,4281.6,4281.5,0.42031]
[1757010768684,3.8464,4281.6,4281.5,1.03881]
[1757010768882,3.2078,4281.6,4281.5,1.29681]
[1757010769285,3.2078,4281.6,4281.5,1.54491]
[1757010769787,3.2078,4282.1,4281.9,0.42027]
[1757010770085,3.2078,4282.1,4282.0,0.8765]
[1757010770284,3.2078,4282.1,4282.0,1.29676]
[1757010770986,0.6386,4282.5,4282.4,0.42022]
[1757010771199,0.6386,4282.5,4282.4,1.29672]
[1757010771896,3.2078,4282.6,4282.4,1.29672]
[1757010771897,3.2078,4282.6,4282.5,1.03871]
[1757010772099,0.42023,4282.3,4282.0,41.22025]
[1757010772403,0.6386,4282.2,4282.1,0.67825]
[1757010773696,0.6386,4282.2,4282.1,0.42025]
[1757010773897,0.6386,4282.2,4282.1,0.67825]
[1757010774094,0.6386,4282.2,4282.1,0.42025]
[1757010774304,0.6386,4282.2,4282.1,0.258]
[1757010774495,0.6386,4282.2,4282.1,0.67825]
[1757010775700,0.6386,4281.9,4281.0,1.0509]
[1757010775900,0.6386,4281.6,4281.1,1.05087]
[1757010776099,0.6386,4281.4,4281.3,0.42033]
[1757010777705,3.8464,4281.7,4281.6,0.4203]
[1757010777905,3.8464,4281.7,4281.6,1.2958]
[1757010778202,3.8464,4281.7,4281.6,0.6773]
[1757010778703,0.6386,4281.7,4281.6,0.6773]
[1757010780000,0.2537,4282.0,4281.6,0.8755]
[1757010780303,0.2537,4282.0,4281.9,0.42027]
[1757010780504,0.2537,4282.0,4281.9,0.67727]
[1757010780703,0.8923,4282.0,4281.9,0.67727]
[1757010781006,1.31256,4282.0,4281.9,0.257]
[1757010781193,0.8923,4282.0,4281.9,0.67727]
[1757010781598,0.6386,4282.0,4281.9,1.29577]
[1757010781805,3.2078,4282.3,4282.2,0.42024]
[1757010782004,3.8464,4282.8,4282.7,0.42019]
[1757010782203,3.8464,4282.8,4282.7,0.67619]
[1757010782595,3.8464,4282.8,4282.4,40.8]
[1757010782596,1.31251,4282.5,4282.4,40.8]
[1757010782799,0.2537,4282.0,4281.3,0.6185]
[1757010783002,0.2537,4282.0,4281.4,0.257]
[1757010783199,3.8464,4282.3,4282.2,0.42024]
[1757010783400,3.8464,4282.3,4282.2,0.67724]
[1757010784203,3.8464,4282.3,4282.2,0.257]
[1757010785303,0.6386,4282.2,4282.0,40.8]
[1757010785499,0.6386,4282.1,4282.0,41.057]
[1757010785699,0.42025,4282.1,4282.0,0.257]
[1757010785895,0.2537,4281.5,4280.6,1.051]
[1757010786104,0.6386,4281.4,4281.3,0.42032]
[1757010786408,0.6386,4281.4,4281.3,0.67732]
[1757010787704,3.8464,4281.7,4281.6,0.4203]
[1757010787908,3.2078,4281.7,4281.6,1.2958]
[1757010788407,0.6386,4282.4,4282.3,0.6185]
[1757010788602,3.2078,4282.5,4282.4,1.03872]
[1757010788804,3.2078,4282.5,4282.4,41.83872]
[1757010789607,3.2078,4283.1,4283.0,1.03866]
[1757010789804,3.2078,4283.1,4283.0,1.29466]
[1757010791108,0.6386,4283.4,4283.3,0.42013]
[1757010791313,0.6386,4283.4,4283.3,1.29463]
[1757010791503,3.2078,4283.6,4283.5,0.42011]
[1757010791704,3.2078,4283.6,4283.5,1.03861]
[1757010791899,3.2078,4283.6,4282.6,1.0505]
[1757010792207,0.6386,4283.4,4283.1,0.42015]
[1757010792510,0.6386,4283.4,4283.2,0.67614]
[1757010792806,0.6386,4283.4,4283.3,0.256]
[1757010793009,0.6386,4283.4,4282.6,0.6185]
[1757010793206,0.2537,4283.0,4282.8,0.42018]
[1757010793412,0.6386,4282.9,4282.8,0.42018]
[1757010793902,0.6386,4282.9,4282.8,1.03868]
[1757010795303,0.2537,4283.5,4282.8,0.6185]
[1757010795507,0.6386,4283.5,4282.8,0.6185]
[1757010795808,0.6386,4283.4,4283.0,0.42015]
[1757010796008,0.6386,4283.3,4283.1,0.255]
[1757010796206,0.6386,4283.4,4283.0,0.42015]
[1757010796404,0.6386,4283.4,4283.1,0.67514]
[1757010796601,0.2537,4283.5,4283.2,0.42014]
[1757010796800,0.6386,4283.4,4283.2,1.03864]
[1757010797003,0.6386,4283.4,4283.3,0.6185]
[1757010797806,3.2078,4283.6,4283.4,0.42012]
[1757010798011,3.2078,4283.6,4283.5,0.881]
[1757010798312,3.783,4283.6,4283.5,0.255]
[1757010799111,3.2078,4283.6,4283.5,0.881]
[1757010799310,3.783,4283.6,4283.5,0.881]
[1757010800110,3.2078,4283.6,4283.5,1.1261]
[1757010800408,0.5752,4284.0,4283.6,1.05026]
[1757010800614,0.8289,4284.5,4284.4,0.42002]
[1757010800810,0.8289,4284.5,4284.4,0.67502]
[1757010801510,0.5752,4284.5,4284.4,1.30102]
[1757010802103,3.2078,4284.7,4284.6,0.42]
[1757010802307,3.783,4284.7,4284.6,0.42]
[1757010802505,3.783,4284.7,4284.1,0.626]
[1757010802710,0.2352,4284.0,4283.9,41.22006]
[1757010802904,0.8104,4284.0,4283.9,41.47406]
[1757010804515,0.5752,4284.0,4283.9,41.47406]
[1757010805214,0.65521,4284.5,4284.1,0.42005]
[1757010805414,0.5752,4284.3,4284.2,0.254]
[1757010805618,0.42002,4284.4,4284.2,0.254]
[1757010805810,0.5752,4284.3,4284.2,0.254]
[1757010806618,3.6278,4284.7,4284.3,1.04603]
[1757010806820,0.5752,4284.6,4284.4,0.42002]
[1757010807014,0.5752,4284.6,4284.5,0.254]
[1757010807422,3.2078,4284.7,4284.6,0.42]
[1757010807617,3.783,4284.7,4284.6,0.42]
[1757010807918,0.8104,4284.5,4283.9,40.8]
[1757010808214,0.8104,4284.5,4284.4,0.42002]
[1757010808418,0.5752,4284.5,4284.4,1.30002]
[1757010809216,3.2078,4284.7,4284.5,0.626]
[1757010809516,0.5752,4284.6,4284.4,0.254]
[1757010809721,0.5752,4284.6,4284.5,0.42001]
[1757010809920,0.5752,4284.4,4284.0,0.42006]
[1757010810117,0.5752,4284.4,4284.3,0.42003]
[1757010810615,3.783,4284.7,4284.6,0.42]
[1757010810921,3.783,4284.7,4284.6,1.3]
[1757010811315,3.783,4285.2,4285.1,0.41995]
[1757010811520,3.783,4285.2,4285.1,1.29995]
[1757010812518,3.783,4285.2,4285.1,0.67395]
[1757010814427,1.04954,4286.6,4285.1,0.67395]
[1757010814428,3.2078,4286.4,4285.1,4.85936]
[1757010814622,0.5752,4285.9,4285.6,3.2078]
[1757010814821,0.5752,4285.9,4285.8,0.41988]
[1757010815918,0.5752,4285.9,4285.8,0.254]
[1757010816124,0.5752,4285.8,4285.5,0.41991]
[1757010816317,0.2352,4286.0,4285.0,3.2078]
[1757010816522,0.5752,4285.4,4285.1,0.254]
[1757010816820,0.5752,4284.9,4284.8,0.41998]
[1757010817019,0.5752,4284.9,4284.8,0.67398]
[1757010817218,0.5752,4284.9,4284.8,41.47398]
[1757010818916,0.5752,4284.9,4284.3,2.72249225]
[1757010818917,0.5752,4284.9,4284.3,2.09649225]
[1757010819119,0.8104,4284.5,4284.4,0.67402]
[1757010819525,0.8104,4285.0,4284.9,0.41997]
[1757010819718,0.8104,4285.0,4284.9,0.67397]
[1757010821723,3.2078,4285.2,4285.1,0.41995]
[1757010822024,0.8104,4285.5,4285.4,0.41992]
[1757010822219,0.8104,4285.5,4285.4,0.67392]
[1757010822417,0.5752,4285.5,4285.4,0.67392]
[1757010822619,0.5752,4286.3,4285.8,0.626]
[1757010822919,0.5752,4286.3,4285.9,0.254]
[1757010823222,0.5752,4286.3,4286.2,0.41985]
[1757010823419,3.783,4286.4,4286.3,0.41984]
[1757010823623,3.783,4286.9,4286.8,0.41979]
[1757010824926,0.5752,4287.4,4286.8,1.04579]
[1757010825114,0.5752,4287.4,4287.0,3.2078]
[1757010825319,0.2352,4287.5,4287.3,0.41974]
[1757010825617,0.46845,4287.5,4287.1,41.054]
[1757010825817,0.46845,4287.5,4286.3,5.30429225]
[1757010825818,0.2352,4286.5,4286.4,0.41983]
[1757010826017,0.2352,4287.0,4286.7,0.41979]
[1757010826220,0.2352,4287.0,4286.8,0.67378]
[1757010826426,0.5752,4286.9,4286.8,0.254]
[1757010826829,0.5752,4286.9,4286.5,0.41981]
[1757010827124,0.5752,4286.9,4286.7,0.254]
[1757010827623,0.2352,4287.0,4286.7,0.254]
[1757010827926,0.2352,4287.0,4286.8,0.41978]
[1757010827927,0.581,4286.9,4286.8,0.41978]
[1757010828717,0.581,4286.9,4286.7,0.254]
[1757010828923,0.581,4286.9,4286.7,0.67379]
[1757010829115,0.581,4286.9,4286.3,40.8]
[1757010829116,0.581,4286.4,4286.3,40.8]
[1757010829521,0.581,4286.4,4286.3,41.054]
[1757010829924,0.581,4286.9,4286.3,0.8468]
[1757010830222,0.8098,4286.5,4286.4,0.41982]
[1757010831020,0.8098,4286.5,4286.3,0.254]
[1757010831428,0.2288,4286.5,4286.3,0.254]
[1757010831613,0.581,4286.4,4286.3,0.254]
[1757010831815,0.581,4286.4,4285.6,3.2078]
[1757010832016,0.581,4285.9,4285.6,3.2078]
[1757010832221,0.581,4285.9,4285.8,0.41988]
[1757010832520,0.581,4285.9,4285.8,41.21988]
[1757010833933,0.581,4285.9,4285.8,40.8]
[1757010834227,0.2288,4285.5,4285.1,3.2078]
[1757010834428,0.2288,4285.5,4285.3,0.41993]
[1757010834626,0.581,4285.4,4285.3,0.41993]
[1757010835327,0.581,4285.4,4285.3,1.01273]
[1757010836230,0.41988,4285.9,4285.5,0.41991]
[1757010836433,0.41989,4285.8,4285.6,0.254]
[1757010836724,0.581,4285.7,4285.6,0.254]
[1757010838027,1.00093,4285.4,4285.0,0.28197]
[1757010838237,1.00095,4285.1,4285.0,0.28197]
[1757010839030,3.7888,4285.1,4285.0,0.28197]
[1757010841229,3.7888,4285.1,4285.0,0.87477]
[1757010841420,3.7888,4285.1,4285.0,0.28197]
[1757010842131,3.7888,4285.1,4285.0,0.87477]
[1757010842328,3.7888,4285.1,4285.0,0.28197]
[1757010843129,4.20875,4285.1,4285.0,0.28197]
[1757010843327,3.7888,4285.1,4285.0,0.28197]
[1757010844234,4.20875,4285.1,4285.0,0.28197]
[1757010844626,3.7888,4285.1,4285.0,0.28197]
[1757010845235,4.20875,4285.1,4285.0,0.28197]
[1757010846630,4.20875,4285.1,4285.0,0.70193]
[1757010846937,4.20875,4285.1,4285.0,0.28197]
[1757010847836,3.7888,4285.1,4285.0,0.95593]
[1757010848037,3.7888,4285.1,4285.0,1.54873]
[1757010848233,3.7888,4285.1,4285.0,0.95593]
[1757010848429,0.581,4285.1,4285.0,0.95593]
[1757010848835,0.2288,4285.5,4285.4,0.41992]
[1757010849038,0.2288,4285.5,4285.4,0.67392]
[1757010849337,3.2078,4285.7,4285.6,1.0127]
[1757010849731,0.8098,4286.0,4285.9,0.41988]
[1757010849936,3.2078,4286.2,4286.1,0.41986]
[1757010850133,0.581,4286.6,4286.5,0.41982]
[1757010850326,3.4366,4287.5,4286.8,1.01259]
[1757010850631,3.4366,4287.5,4286.8,40.8]
[1757010850938,0.41974,4287.3,4286.9,0.254]
[1757010851136,0.41975,4287.2,4286.9,0.254]
[1757010851438,0.8162,4287.0,4286.6,0.4198]
[1757010851630,0.2352,4287.0,4286.7,0.67379]
[1757010851826,0.581,4286.9,4286.7,0.67379]
[1757010852032,0.581,4286.9,4286.7,0.254]
[1757010852230,0.8098,4286.5,4286.4,0.41983]
[1757010852436,0.8098,4286.5,4286.4,0.67383]
[1757010853640,0.8098,4286.5,4286.4,0.41983]
[1757010853937,0.8098,4286.5,4286.4,0.67383]
[1757010854137,0.8098,4286.5,4286.3,40.8]
[1757010854138,0.581,4286.4,4286.3,40.8]
[1757010854732,0.581,4285.9,4285.8,34.29849225]
[1757010855036,0.581,4285.9,4285.5,3.2078]
[1757010855337,0.2288,4286.0,4285.6,0.254]
[1757010855338,0.64867,4286.0,4285.6,0.254]
[1757010855537,0.581,4285.9,4285.7,0.254]
[1757010855834,1.00089,4285.8,4285.7,0.254]
[1757010856238,0.581,4285.8,4285.7,0.254]
[1757010856434,0.581,4285.8,4285.5,3.2078]
[1757010856631,0.581,4285.8,4285.6,0.254]
[1757010856840,0.581,4285.8,4285.6,0.6739]
[1757010857238,0.64872,4285.5,4285.3,0.67393]
[1757010857440,0.581,4285.4,4285.3,0.254]
[1757010861239,0.581,4285.4,4285.3,41.6577]
[1757010862645,0.581,4285.4,4285.3,42.07763]
[1757010862846,0.9951,4285.8,4285.7,1.18289]
[1757010863048,0.9951,4285.8,4285.7,1.43689]
[1757010863649,0.9951,4285.8,4285.7,1.017]
[1757010863846,1.41499,4285.8,4285.7,1.017]
[1757010864048,1.3768,4285.8,4285.7,1.017]
[1757010864243,1.3768,4285.8,4285.7,0.254]
[1757010865253,1.3768,4285.8,4285.7,0.6351]
[1757010865759,1.3768,4285.8,4285.7,1.055]
[1757010866052,0.593,4285.8,4285.3,2.09649225]
[1757010866243,1.3768,4285.4,4285.3,0.80103]
[1757010866553,1.3768,4285.4,4285.3,0.254]
[1757010866753,1.3768,4285.4,4285.3,0.67393]
[1757010866949,1.3768,4285.4,4285.3,1.05503]
[1757010867740,1.3768,4285.4,4285.1,2.09649225]
[1757010867948,1.3768,4285.2,4285.0,0.28197]
[1757010868140,1.3768,4285.2,4285.1,0.254]
[1757010868357,1.3768,4285.2,4285.1,0.67395]
[1757010868747,1.3768,4285.2,4285.1,1.05505]